[Event "Titled Tuesday Blitz April 4 Early 2023"]
[White "Carrasco Miranda, Andres"]
[Black "Sanchez, Robert"]
[WhiteFideId "3405990"]
[BlackFideId "2034360"]
[WhiteElo "2183"]
[BlackElo "2031"]
[Result "1-0"]
[Round "07"]
[TimeControl "180+2"]
[Date "2023.04.04"]
[WhiteClock "0:00:27"]
[BlackClock "0:00:53"]

1. d4 {[%clk 0:03:00]}  Nf6 {[%clk 0:02:55]} 2. c4 {[%clk 0:03:00]}  e6 {[%clk 0:02:52]} 3. g3 {[%clk 0:03:00]}  Bb4+ {[%clk 0:02:52]} 4. Nd2 {[%clk 0:02:59]}  d5 {[%clk 0:02:51]} 5. Bg2 {[%clk 0:02:59]}  O-O {[%clk 0:02:51]} 6. Nf3 {[%clk 0:02:57]}  c6 {[%clk 0:02:50]} 7. O-O {[%clk 0:02:57]}  Be7 {[%clk 0:02:50]} 8. Qc2 {[%clk 0:02:56]}  Nbd7 {[%clk 0:02:48]} 9. Rd1 {[%clk 0:02:56]}  Re8 {[%clk 0:02:44]} 10. e4 {[%clk 0:02:56]}  dxe4 {[%clk 0:02:44]} 11. Nxe4 {[%clk 0:02:57]}  Nxe4 {[%clk 0:02:44]} 12. Qxe4 {[%clk 0:02:57]}  Nf8 {[%clk 0:02:38]} 13. b3 {[%clk 0:02:54]}  Ng6 {[%clk 0:02:38]} 14. h4 {[%clk 0:02:53]}  f5 {[%clk 0:02:35]} 15. Qc2 {[%clk 0:02:51]}  Bf6 {[%clk 0:02:30]} 16. Bg5 {[%clk 0:02:48]}  h6 {[%clk 0:02:27]} 17. Bxf6 {[%clk 0:02:44]}  Qxf6 {[%clk 0:02:28]} 18. Rac1 {[%clk 0:02:35]}  f4 {[%clk 0:02:26]} 19. h5 {[%clk 0:02:26]}  Nf8 {[%clk 0:02:26]} 20. g4 {[%clk 0:02:25]}  Nd7 {[%clk 0:02:22]} 21. Qe4 {[%clk 0:02:23]}  e5 {[%clk 0:02:21]} 22. dxe5 {[%clk 0:02:15]}  Nxe5 {[%clk 0:02:21]} 23. Nxe5 {[%clk 0:02:16]}  Rxe5 {[%clk 0:02:21]} 24. Rd8+ {[%clk 0:02:13]}  Qxd8 {[%clk 0:02:21]} 25. Qxe5 {[%clk 0:02:13]}  Bxg4 {[%clk 0:02:20]} 26. Qxf4 {[%clk 0:01:54]}  Bxh5 {[%clk 0:02:19]} 27. Re1 {[%clk 0:01:52]}  Qf8 {[%clk 0:02:10]} 28. Qc7 {[%clk 0:01:49]}  Re8 {[%clk 0:02:04]} 29. Re5 {[%clk 0:01:21]}  Rxe5 {[%clk 0:01:55]} 30. Qxe5 {[%clk 0:01:22]}  Bg6 {[%clk 0:01:45]} 31. Qc7 {[%clk 0:01:19]}  Qb4 {[%clk 0:01:37]} 32. Qb8+ {[%clk 0:01:11]}  Kh7 {[%clk 0:01:37]} 33. Qxa7 {[%clk 0:01:11]}  Qe1+ {[%clk 0:01:34]} 34. Kh2 {[%clk 0:01:11]}  Qe5+ {[%clk 0:01:27]} 35. Kg1 {[%clk 0:01:10]}  h5 {[%clk 0:01:26]} 36. a4 {[%clk 0:00:49]}  h4 {[%clk 0:01:24]} 37. Qe3 {[%clk 0:00:46]}  Qb2 {[%clk 0:01:18]} 38. Be4 {[%clk 0:00:41]}  Qf6 {[%clk 0:01:18]} 39. Bxg6+ {[%clk 0:00:39]}  Qxg6+ {[%clk 0:01:18]} 40. Kh2 {[%clk 0:00:39]}  Qf5 {[%clk 0:01:13]} 41. b4 {[%clk 0:00:37]}  g5 {[%clk 0:01:12]} 42. a5 {[%clk 0:00:35]}  Qg4 {[%clk 0:01:02]} 43. Qe7+ {[%clk 0:00:34]}  Kg6 {[%clk 0:01:02]} 44. Qe8+ {[%clk 0:00:26]}  Kg7 {[%clk 0:00:58]} 45. Qe7+ {[%clk 0:00:26]}  Kg8 {[%clk 0:00:56]} 46. Qe8+ {[%clk 0:00:26]}  Kg7 {[%clk 0:00:57]} 47. Qe7+ {[%clk 0:00:26]}  Kg6 {[%clk 0:00:55]} 48. Qe8+ {[%clk 0:00:27]}  Kf5 {[%clk 0:00:53]} 49. Qd7+ {[%clk 0:00:27]}  Kf4 {[%clk 0:00:53]} 50. Qxg4+ {[%clk 0:00:28]}  Kxg4 {[%clk 0:00:54]} 51. b5 {[%clk 0:00:29]}  Kf3 {[%clk 0:00:52]} 52. a6 {[%clk 0:00:27]}  g4 {[%clk 0:00:52]} 53. axb7 {[%clk 0:00:26]}  g3+ {[%clk 0:00:52]} 54. fxg3 {[%clk 0:00:27]}  hxg3+ {[%clk 0:00:53]} 55. Kg1 {[%clk 0:00:27]} 1-0


[Site "https://www.chess.com"]

[Event "Titled Tuesday Blitz April 4 Early 2023"]
[White "Rasulov, Vugar"]
[Black "Naroditsky, Daniel"]
[WhiteFideId "13402390"]
[BlackFideId "2026961"]
[WhiteElo "2509"]
[BlackElo "2633"]
[Result "1/2-1/2"]
[Round "08"]
[TimeControl "180+2"]
[Date "2023.04.04"]
[WhiteClock "0:00:41"]
[BlackClock "0:00:36"]

1. Nf3 {[%clk 0:03:00]}  Nf6 {[%clk 0:02:59]} 2. b3 {[%clk 0:03:00]}  d5 {[%clk 0:02:57]} 3. Bb2 {[%clk 0:03:01]}  Bg4 {[%clk 0:02:57]} 4. e3 {[%clk 0:02:59]}  Nbd7 {[%clk 0:02:55]} 5. c4 {[%clk 0:02:59]}  e6 {[%clk 0:02:55]} 6. h3 {[%clk 0:02:57]}  Bh5 {[%clk 0:02:53]} 7. Be2 {[%clk 0:02:55]}  Bd6 {[%clk 0:02:52]} 8. Nc3 {[%clk 0:02:52]}  c6 {[%clk 0:02:52]} 9. O-O {[%clk 0:02:50]}  O-O {[%clk 0:02:52]} 10. Rc1 {[%clk 0:02:48]}  a6 {[%clk 0:02:48]} 11. d4 {[%clk 0:02:45]}  b5 {[%clk 0:02:45]} 12. cxd5 {[%clk 0:02:45]}  cxd5 {[%clk 0:02:44]} 13. Ne5 {[%clk 0:02:37]}  Bxe2 {[%clk 0:02:34]} 14. Nxe2 {[%clk 0:02:37]}  Rc8 {[%clk 0:02:31]} 15. Nf4 {[%clk 0:02:32]}  Rxc1 {[%clk 0:02:12]} 16. Qxc1 {[%clk 0:02:31]}  Qc8 {[%clk 0:02:12]} 17. Nfd3 {[%clk 0:02:24]}  Qb7 {[%clk 0:01:49]} 18. Qc6 {[%clk 0:02:13]}  Qxc6 {[%clk 0:01:42]} 19. Nxc6 {[%clk 0:02:14]}  Rc8 {[%clk 0:01:42]} 20. Rc1 {[%clk 0:02:14]}  Kf8 {[%clk 0:01:39]} 21. Kf1 {[%clk 0:02:06]}  Ke8 {[%clk 0:01:21]} 22. Ke2 {[%clk 0:02:06]}  Ng8 {[%clk 0:01:17]} 23. Ncb4 {[%clk 0:01:44]}  Rxc1 {[%clk 0:01:17]} 24. Bxc1 {[%clk 0:01:45]}  Nb8 {[%clk 0:01:15]} 25. f3 {[%clk 0:01:41]}  Ne7 {[%clk 0:01:12]} 26. Bd2 {[%clk 0:01:38]}  a5 {[%clk 0:01:03]} 27. Nc2 {[%clk 0:01:37]}  b4 {[%clk 0:01:04]} 28. Nb2 {[%clk 0:01:30]}  Nbc6 {[%clk 0:01:04]} 29. Na4 {[%clk 0:01:31]}  f6 {[%clk 0:01:01]} 30. e4 {[%clk 0:01:19]}  Kd7 {[%clk 0:01:02]} 31. Kd3 {[%clk 0:01:19]}  Kc7 {[%clk 0:00:58]} 32. Ne3 {[%clk 0:01:12]}  h5 {[%clk 0:00:57]} 33. g4 {[%clk 0:01:12]}  hxg4 {[%clk 0:00:54]} 34. hxg4 {[%clk 0:01:13]}  g5 {[%clk 0:00:45]} 35. Be1 {[%clk 0:01:01]}  Nd8 {[%clk 0:00:36]} 36. Bd2 {[%clk 0:00:43]}  Ndc6 {[%clk 0:00:36]} 37. Be1 {[%clk 0:00:41]} 1/2-1/2


[Site "https://www.chess.com"]

[Event "Titled Tuesday Blitz April 4 Early 2023"]
[White "Corrales Jimenez, Fidel"]
[Black "Hakobyan, Aram"]
[WhiteFideId "3506690"]
[BlackFideId "13306677"]
[WhiteElo "2541"]
[BlackElo "2584"]
[Result "0-1"]
[Round "08"]
[TimeControl "180+2"]
[Date "2023.04.04"]
[WhiteClock "0:01:23"]
[BlackClock "0:00:47"]

1. e4 {[%clk 0:03:00]}  c5 {[%clk 0:02:59]} 2. d4 {[%clk 0:03:00]}  cxd4 {[%clk 0:03:00]} 3. c3 {[%clk 0:03:00]}  d3 {[%clk 0:02:58]} 4. Bxd3 {[%clk 0:03:00]}  Nc6 {[%clk 0:02:59]} 5. f4 {[%clk 0:03:00]}  g6 {[%clk 0:02:58]} 6. Nf3 {[%clk 0:03:01]}  Bg7 {[%clk 0:02:59]} 7. Be3 {[%clk 0:03:00]}  d6 {[%clk 0:03:00]} 8. Nbd2 {[%clk 0:02:59]}  Nf6 {[%clk 0:03:01]} 9. O-O {[%clk 0:02:59]}  Ng4 {[%clk 0:03:01]} 10. Qe1 {[%clk 0:02:55]}  O-O {[%clk 0:03:00]} 11. Kh1 {[%clk 0:02:55]}  Nxe3 {[%clk 0:03:00]} 12. Qxe3 {[%clk 0:02:56]}  Bd7 {[%clk 0:02:55]} 13. Rad1 {[%clk 0:02:55]}  Qb6 {[%clk 0:02:48]} 14. Qxb6 {[%clk 0:02:54]}  axb6 {[%clk 0:02:49]} 15. a3 {[%clk 0:02:55]}  Na5 {[%clk 0:02:46]} 16. e5 {[%clk 0:02:52]}  dxe5 {[%clk 0:02:45]} 17. fxe5 {[%clk 0:02:53]}  Ba4 {[%clk 0:02:43]} 18. Rde1 {[%clk 0:02:49]}  Rad8 {[%clk 0:02:43]} 19. Be2 {[%clk 0:02:38]}  Bh6 {[%clk 0:02:31]} 20. Nc4 {[%clk 0:02:37]}  Nxc4 {[%clk 0:02:23]} 21. Bxc4 {[%clk 0:02:38]}  Bc6 {[%clk 0:02:12]} 22. Nd4 {[%clk 0:02:37]}  Bd5 {[%clk 0:02:13]} 23. Bxd5 {[%clk 0:02:31]}  Rxd5 {[%clk 0:02:13]} 24. g3 {[%clk 0:02:31]}  Bg7 {[%clk 0:02:11]} 25. Nf3 {[%clk 0:02:27]}  h6 {[%clk 0:02:08]} 26. Re4 {[%clk 0:02:27]}  Rfd8 {[%clk 0:02:07]} 27. Kg2 {[%clk 0:02:27]}  e6 {[%clk 0:02:01]} 28. Rb4 {[%clk 0:02:26]}  b5 {[%clk 0:02:01]} 29. Re1 {[%clk 0:02:25]}  Bf8 {[%clk 0:01:58]} 30. Rbe4 {[%clk 0:02:25]}  g5 {[%clk 0:01:57]} 31. h4 {[%clk 0:02:25]}  Be7 {[%clk 0:01:54]} 32. hxg5 {[%clk 0:02:25]}  hxg5 {[%clk 0:01:54]} 33. Kh3 {[%clk 0:02:25]}  Kg7 {[%clk 0:01:53]} 34. Kg4 {[%clk 0:02:25]}  Kg6 {[%clk 0:01:49]} 35. Rh1 {[%clk 0:02:25]}  Rd3 {[%clk 0:01:43]} 36. Re2 {[%clk 0:02:22]}  Rc8 {[%clk 0:01:22]} 37. Reh2 {[%clk 0:01:57]}  Rc4+ {[%clk 0:01:21]} 38. Nd4 {[%clk 0:01:57]}  Bf8 {[%clk 0:01:18]} 39. Rf2 {[%clk 0:01:51]}  Bg7 {[%clk 0:00:55]} 40. Rhf1 {[%clk 0:01:51]}  Bxe5 {[%clk 0:00:52]} 41. Rf3 {[%clk 0:01:26]}  f5+ {[%clk 0:00:51]} 42. Kh3 {[%clk 0:01:23]}  g4+ {[%clk 0:00:52]} 43. Kg2 {[%clk 0:01:23]}  gxf3+ {[%clk 0:00:52]} 44. Nxf3 {[%clk 0:01:23]}  Bf6 {[%clk 0:00:52]} 45. Re1 {[%clk 0:01:22]}  Rc6 {[%clk 0:00:49]} 46. Re2 {[%clk 0:01:23]}  Rd5 {[%clk 0:00:48]} 47. Ng1 {[%clk 0:01:22]}  e5 {[%clk 0:00:49]} 48. Nh3 {[%clk 0:01:23]}  Rcd6 {[%clk 0:00:48]} 49. Nf2 {[%clk 0:01:21]}  Rd2 {[%clk 0:00:48]} 50. Re1 {[%clk 0:01:22]}  e4 {[%clk 0:00:48]} 51. g4 {[%clk 0:01:22]}  Rxf2+ {[%clk 0:00:47]} 52. Kh3 {[%clk 0:01:23]}  Rd3+ {[%clk 0:00:47]} 0-1


[Site "https://www.chess.com"]

[Event "Titled Tuesday Blitz April 4 Early 2023"]
[White "Martinez Alcantara, Jose Eduardo"]
[Black "Bachmann, Axel"]
[WhiteFideId "3805662"]
[BlackFideId "3700488"]
[WhiteElo "2711"]
[BlackElo "2605"]
[Result "1-0"]
[Round "08"]
[TimeControl "180+2"]
[Date "2023.04.04"]
[WhiteClock "0:01:31"]
[BlackClock "0:00:45"]

1. e4 {[%clk 0:03:00]}  Nc6 {[%clk 0:02:58]} 2. Nf3 {[%clk 0:02:57]}  d6 {[%clk 0:02:59]} 3. d4 {[%clk 0:02:57]}  Nf6 {[%clk 0:02:59]} 4. d5 {[%clk 0:02:57]}  Nb8 {[%clk 0:02:59]} 5. Nc3 {[%clk 0:02:57]}  c6 {[%clk 0:02:59]} 6. a4 {[%clk 0:02:58]}  g6 {[%clk 0:02:59]} 7. Bc4 {[%clk 0:02:58]}  Bg7 {[%clk 0:02:59]} 8. h3 {[%clk 0:02:58]}  O-O {[%clk 0:02:57]} 9. O-O {[%clk 0:02:58]}  b6 {[%clk 0:02:57]} 10. Re1 {[%clk 0:02:57]}  Bb7 {[%clk 0:02:53]} 11. Bf4 {[%clk 0:02:57]}  a6 {[%clk 0:02:49]} 12. Qd2 {[%clk 0:02:56]}  Nbd7 {[%clk 0:02:47]} 13. Ba2 {[%clk 0:02:51]}  Rc8 {[%clk 0:02:32]} 14. Bh6 {[%clk 0:02:49]}  b5 {[%clk 0:02:25]} 15. Bxg7 {[%clk 0:02:49]}  Kxg7 {[%clk 0:02:25]} 16. axb5 {[%clk 0:02:47]}  axb5 {[%clk 0:02:15]} 17. dxc6 {[%clk 0:02:42]}  Bxc6 {[%clk 0:02:16]} 18. Nd4 {[%clk 0:02:42]}  Qb6 {[%clk 0:02:08]} 19. Nd5 {[%clk 0:02:31]}  Bxd5 {[%clk 0:02:07]} 20. exd5 {[%clk 0:02:32]}  Ne5 {[%clk 0:02:07]} 21. c3 {[%clk 0:02:29]}  Rfe8 {[%clk 0:01:43]} 22. Qg5 {[%clk 0:02:03]}  Kh8 {[%clk 0:01:27]} 23. f4 {[%clk 0:01:58]}  Ned7 {[%clk 0:01:12]} 24. Kh2 {[%clk 0:01:58]}  b4 {[%clk 0:01:07]} 25. Nc6 {[%clk 0:01:58]}  b3 {[%clk 0:00:58]} 26. Bb1 {[%clk 0:01:53]}  Qf2 {[%clk 0:00:56]} 27. Rxe7 {[%clk 0:01:29]}  Rxe7 {[%clk 0:00:55]} 28. Nxe7 {[%clk 0:01:30]}  Re8 {[%clk 0:00:55]} 29. Bf5 {[%clk 0:01:30]}  gxf5 {[%clk 0:00:46]} 30. Nxf5 {[%clk 0:01:31]}  Rg8 {[%clk 0:00:45]} 31. Ra8 {[%clk 0:01:31]} 1-0


[Site "https://www.chess.com"]

[Event "Titled Tuesday Blitz April 4 Early 2023"]
[White "Yanchenko, Roman"]
[Black "Moroni, Luca Jr"]
[WhiteFideId "4137329"]
[BlackFideId "865834"]
[WhiteElo "2491"]
[BlackElo "2569"]
[Result "1/2-1/2"]
[Round "08"]
[TimeControl "180+2"]
[Date "2023.04.04"]
[WhiteClock "0:00:14"]
[BlackClock "0:00:07"]

1. d4 {[%clk 0:03:00]}  g6 {[%clk 0:03:00]} 2. Nf3 {[%clk 0:03:00]}  Bg7 {[%clk 0:03:01]} 3. c4 {[%clk 0:03:01]}  d6 {[%clk 0:03:01]} 4. Nc3 {[%clk 0:03:02]}  Nc6 {[%clk 0:03:02]} 5. e3 {[%clk 0:03:00]}  e5 {[%clk 0:03:01]} 6. b3 {[%clk 0:03:00]}  exd4 {[%clk 0:02:58]} 7. Nxd4 {[%clk 0:03:00]}  Nge7 {[%clk 0:02:54]} 8. Be2 {[%clk 0:02:59]}  Nxd4 {[%clk 0:02:50]} 9. exd4 {[%clk 0:02:59]}  Nf5 {[%clk 0:02:51]} 10. Bb2 {[%clk 0:02:39]}  O-O {[%clk 0:01:54]} 11. d5 {[%clk 0:01:54]}  Re8 {[%clk 0:01:53]} 12. O-O {[%clk 0:01:50]}  Nd4 {[%clk 0:01:53]} 13. Bd3 {[%clk 0:01:29]}  Qg5 {[%clk 0:01:52]} 14. Ne4 {[%clk 0:01:26]}  Qh4 {[%clk 0:01:46]} 15. Re1 {[%clk 0:00:55]}  Bf5 {[%clk 0:01:18]} 16. Qb1 {[%clk 0:00:05]}  Re7 {[%clk 0:00:43]} 17. Re3 {[%clk 0:00:05]}  Rae8 {[%clk 0:00:39]} 18. Ng3 {[%clk 0:00:05]}  Rxe3 {[%clk 0:00:19]} 19. fxe3 {[%clk 0:00:06]}  Nf3+ {[%clk 0:00:11]} 20. gxf3 {[%clk 0:00:06]}  Bxd3 {[%clk 0:00:11]} 21. Qxd3 {[%clk 0:00:05]}  Bxb2 {[%clk 0:00:11]} 22. Rf1 {[%clk 0:00:05]}  Bg7 {[%clk 0:00:11]} 23. Kg2 {[%clk 0:00:06]}  Qf6 {[%clk 0:00:11]} 24. f4 {[%clk 0:00:06]}  Qb2+ {[%clk 0:00:11]} 25. Rf2 {[%clk 0:00:07]}  Qc3 {[%clk 0:00:12]} 26. Qxc3 {[%clk 0:00:07]}  Bxc3 {[%clk 0:00:13]} 27. Kf3 {[%clk 0:00:08]}  f5 {[%clk 0:00:13]} 28. Re2 {[%clk 0:00:08]}  Kf7 {[%clk 0:00:13]} 29. e4 {[%clk 0:00:09]}  fxe4+ {[%clk 0:00:11]} 30. Nxe4 {[%clk 0:00:10]}  Bf6 {[%clk 0:00:10]} 31. Ng5+ {[%clk 0:00:09]}  Bxg5 {[%clk 0:00:10]} 32. Rxe8 {[%clk 0:00:10]}  Kxe8 {[%clk 0:00:10]} 33. fxg5 {[%clk 0:00:10]}  Kd7 {[%clk 0:00:10]} 34. h4 {[%clk 0:00:11]}  c6 {[%clk 0:00:09]} 35. Ke4 {[%clk 0:00:11]}  c5 {[%clk 0:00:09]} 36. a4 {[%clk 0:00:10]}  Kc7 {[%clk 0:00:09]} 37. a5 {[%clk 0:00:11]}  b6 {[%clk 0:00:08]} 38. Kd3 {[%clk 0:00:09]}  bxa5 {[%clk 0:00:04]} 39. Kc3 {[%clk 0:00:10]}  Kb6 {[%clk 0:00:04]} 40. Kb2 {[%clk 0:00:10]}  a4 {[%clk 0:00:04]} 41. bxa4 {[%clk 0:00:10]}  Ka6 {[%clk 0:00:04]} 42. Kb3 {[%clk 0:00:11]}  Ka5 {[%clk 0:00:05]} 43. Ka3 {[%clk 0:00:12]}  Kb6 {[%clk 0:00:06]} 44. Kb3 {[%clk 0:00:13]}  Ka5 {[%clk 0:00:06]} 45. Ka3 {[%clk 0:00:13]}  Ka6 {[%clk 0:00:07]} 46. Kb3 {[%clk 0:00:14]}  Ka5 {[%clk 0:00:07]} 1/2-1/2


[Site "https://www.chess.com"]

[Event "Titled Tuesday Blitz April 4 Early 2023"]
[White "Bortnyk, Olexandr"]
[Black "Zemlyanskii, Ivan"]
[WhiteFideId "14120828"]
[BlackFideId "24249971"]
[WhiteElo "2734"]
[BlackElo "2419"]
[Result "1-0"]
[Round "08"]
[TimeControl "180+2"]
[Date "2023.04.04"]
[WhiteClock "0:00:14"]
[BlackClock "0:00:01"]

1. d4 {[%clk 0:03:00]}  d5 {[%clk 0:02:56]} 2. Nc3 {[%clk 0:03:00]}  Nf6 {[%clk 0:02:53]} 3. Bf4 {[%clk 0:03:00]}  c5 {[%clk 0:02:53]} 4. e4 {[%clk 0:03:01]}  Nxe4 {[%clk 0:02:42]} 5. Nxe4 {[%clk 0:03:01]}  dxe4 {[%clk 0:02:43]} 6. dxc5 {[%clk 0:03:01]}  Qa5+ {[%clk 0:02:35]} 7. c3 {[%clk 0:03:01]}  Qxc5 {[%clk 0:02:35]} 8. Qa4+ {[%clk 0:03:02]}  Nc6 {[%clk 0:02:36]} 9. Qxe4 {[%clk 0:03:02]}  Bf5 {[%clk 0:02:32]} 10. Qa4 {[%clk 0:03:02]}  e6 {[%clk 0:02:28]} 11. Nf3 {[%clk 0:03:01]}  Qb6 {[%clk 0:02:27]} 12. Bb5 {[%clk 0:03:00]}  a6 {[%clk 0:02:23]} 13. Bxc6+ {[%clk 0:02:41]}  Qxc6 {[%clk 0:01:54]} 14. Qxc6+ {[%clk 0:02:40]}  bxc6 {[%clk 0:01:55]} 15. O-O-O {[%clk 0:02:30]}  c5 {[%clk 0:01:50]} 16. Ne5 {[%clk 0:02:28]}  f6 {[%clk 0:01:48]} 17. Nc4 {[%clk 0:02:18]}  e5 {[%clk 0:01:35]} 18. Be3 {[%clk 0:02:09]}  Be6 {[%clk 0:01:35]} 19. Na5 {[%clk 0:02:02]}  Kf7 {[%clk 0:01:26]} 20. f4 {[%clk 0:01:57]}  e4 {[%clk 0:01:23]} 21. Nb7 {[%clk 0:01:47]}  Rc8 {[%clk 0:01:07]} 22. Nd8+ {[%clk 0:01:37]}  Ke7 {[%clk 0:01:01]} 23. Nxe6 {[%clk 0:01:38]}  Kxe6 {[%clk 0:01:02]} 24. c4 {[%clk 0:01:39]}  Be7 {[%clk 0:00:57]} 25. Rd5 {[%clk 0:01:39]}  f5 {[%clk 0:00:46]} 26. Rhd1 {[%clk 0:01:36]}  Rhd8 {[%clk 0:00:46]} 27. Re5+ {[%clk 0:01:28]}  Kf6 {[%clk 0:00:45]} 28. Rxd8 {[%clk 0:01:27]}  Rxd8 {[%clk 0:00:46]} 29. Bxc5 {[%clk 0:01:23]}  Bxc5 {[%clk 0:00:39]} 30. Rxc5 {[%clk 0:01:24]}  g5 {[%clk 0:00:38]} 31. Rc6+ {[%clk 0:01:23]}  Ke7 {[%clk 0:00:33]} 32. Rc5 {[%clk 0:01:16]}  Kf6 {[%clk 0:00:30]} 33. Rc6+ {[%clk 0:01:06]}  Ke7 {[%clk 0:00:30]} 34. fxg5 {[%clk 0:01:07]}  e3 {[%clk 0:00:30]} 35. Rc5 {[%clk 0:01:07]}  Ke6 {[%clk 0:00:25]} 36. Rd5 {[%clk 0:01:08]}  Rxd5 {[%clk 0:00:13]} 37. cxd5+ {[%clk 0:01:09]}  Kxd5 {[%clk 0:00:13]} 38. Kd1 {[%clk 0:01:07]}  f4 {[%clk 0:00:11]} 39. h4 {[%clk 0:01:07]}  Ke4 {[%clk 0:00:11]} 40. b4 {[%clk 0:01:06]}  Kf5 {[%clk 0:00:10]} 41. a4 {[%clk 0:01:05]}  Kg4 {[%clk 0:00:07]} 42. h5 {[%clk 0:00:40]}  Kg3 {[%clk 0:00:04]} 43. Ke2 {[%clk 0:00:37]}  Kxg2 {[%clk 0:00:05]} 44. g6 {[%clk 0:00:38]}  hxg6 {[%clk 0:00:05]} 45. hxg6 {[%clk 0:00:39]}  f3+ {[%clk 0:00:06]} 46. Kxe3 {[%clk 0:00:40]}  f2 {[%clk 0:00:07]} 47. g7 {[%clk 0:00:41]}  f1=Q {[%clk 0:00:08]} 48. g8=Q+ {[%clk 0:00:42]}  Kh3 {[%clk 0:00:08]} 49. Qh7+ {[%clk 0:00:32]}  Kg3 {[%clk 0:00:04]} 50. Qg6+ {[%clk 0:00:27]}  Kh2 {[%clk 0:00:05]} 51. Qh5+ {[%clk 0:00:24]}  Kg3 {[%clk 0:00:05]} 52. Qe5+ {[%clk 0:00:22]}  Kh3 {[%clk 0:00:05]} 53. Qe6+ {[%clk 0:00:20]}  Kg3 {[%clk 0:00:05]} 54. Qd6+ {[%clk 0:00:21]}  Kh3 {[%clk 0:00:05]} 55. Qd3 {[%clk 0:00:20]}  Qe1+ {[%clk 0:00:04]} 56. Kd4+ {[%clk 0:00:14]}  Kh4 {[%clk 0:00:01]} 57. Qe4+ {[%clk 0:00:14]} 1-0


[Site "https://www.chess.com"]

[Event "Titled Tuesday Blitz April 4 Early 2023"]
[White "Csonka, Balazs"]
[Black "Zhigalko, Sergei"]
[WhiteFideId "742910"]
[BlackFideId "13502956"]
[WhiteElo "2404"]
[BlackElo "2626"]
[Result "0-1"]
[Round "08"]
[TimeControl "180+2"]
[Date "2023.04.04"]
[WhiteClock "0:00:08"]
[BlackClock "0:00:04"]

1. d4 {[%clk 0:03:00]}  Nf6 {[%clk 0:02:59]} 2. Bf4 {[%clk 0:02:55]}  d5 {[%clk 0:02:57]} 3. e3 {[%clk 0:02:54]}  c5 {[%clk 0:02:57]} 4. Nf3 {[%clk 0:02:52]}  Nc6 {[%clk 0:02:58]} 5. Nbd2 {[%clk 0:02:52]}  Bg4 {[%clk 0:02:47]} 6. c3 {[%clk 0:02:50]}  a6 {[%clk 0:02:23]} 7. h3 {[%clk 0:02:31]}  Bxf3 {[%clk 0:02:23]} 8. Nxf3 {[%clk 0:02:32]}  e6 {[%clk 0:02:23]} 9. Bd3 {[%clk 0:02:17]}  Bd6 {[%clk 0:02:21]} 10. Bg5 {[%clk 0:02:06]}  O-O {[%clk 0:02:17]} 11. O-O {[%clk 0:02:05]}  Rc8 {[%clk 0:02:16]} 12. Qe2 {[%clk 0:02:03]}  h6 {[%clk 0:02:16]} 13. Bxf6 {[%clk 0:01:56]}  Qxf6 {[%clk 0:02:14]} 14. Rad1 {[%clk 0:01:50]}  Rfd8 {[%clk 0:02:12]} 15. Rfe1 {[%clk 0:01:45]}  g6 {[%clk 0:02:11]} 16. a3 {[%clk 0:01:40]}  e5 {[%clk 0:02:01]} 17. dxe5 {[%clk 0:01:34]}  Bxe5 {[%clk 0:01:49]} 18. Bb1 {[%clk 0:01:28]}  Bc7 {[%clk 0:01:36]} 19. Ba2 {[%clk 0:01:21]}  Ne7 {[%clk 0:01:34]} 20. e4 {[%clk 0:01:05]}  dxe4 {[%clk 0:01:13]} 21. Qxe4 {[%clk 0:01:03]}  Nc6 {[%clk 0:01:14]} 22. Bd5 {[%clk 0:00:48]}  Bd6 {[%clk 0:01:06]} 23. Bxc6 {[%clk 0:00:28]}  Rxc6 {[%clk 0:01:06]} 24. Rd2 {[%clk 0:00:21]}  Bh2+ {[%clk 0:00:23]} 25. Kxh2 {[%clk 0:00:11]}  Rxd2 {[%clk 0:00:24]} 26. Nxd2 {[%clk 0:00:08]}  Qd6+ {[%clk 0:00:24]} 27. Kg1 {[%clk 0:00:08]}  Qxd2 {[%clk 0:00:24]} 28. Re2 {[%clk 0:00:05]}  Qd1+ {[%clk 0:00:22]} 29. Re1 {[%clk 0:00:04]}  Qd2 {[%clk 0:00:14]} 30. Re2 {[%clk 0:00:04]}  Qd6 {[%clk 0:00:14]} 31. Qe8+ {[%clk 0:00:03]}  Kg7 {[%clk 0:00:14]} 32. Qe5+ {[%clk 0:00:03]}  Qf6 {[%clk 0:00:14]} 33. f4 {[%clk 0:00:02]}  Re6 {[%clk 0:00:10]} 34. Qxf6+ {[%clk 0:00:01]}  Kxf6 {[%clk 0:00:11]} 35. Rxe6+ {[%clk 0:00:01]}  Kxe6 {[%clk 0:00:12]} 36. Kf2 {[%clk 0:00:02]}  Kd5 {[%clk 0:00:13]} 37. Ke3 {[%clk 0:00:01]}  Kc4 {[%clk 0:00:14]} 38. Kd2 {[%clk 0:00:02]}  Kb3 {[%clk 0:00:14]} 39. Kc1 {[%clk 0:00:02]}  h5 {[%clk 0:00:11]} 40. g3 {[%clk 0:00:02]}  b5 {[%clk 0:00:08]} 41. Kb1 {[%clk 0:00:02]}  f6 {[%clk 0:00:05]} 42. Kc1 {[%clk 0:00:02]}  g5 {[%clk 0:00:05]} 43. fxg5 {[%clk 0:00:02]}  fxg5 {[%clk 0:00:06]} 44. Kb1 {[%clk 0:00:03]}  b4 {[%clk 0:00:03]} 45. cxb4 {[%clk 0:00:02]}  cxb4 {[%clk 0:00:04]} 46. axb4 {[%clk 0:00:03]}  Kxb4 {[%clk 0:00:05]} 47. Kc2 {[%clk 0:00:03]}  Kc4 {[%clk 0:00:05]} 48. Kd2 {[%clk 0:00:03]}  Kd4 {[%clk 0:00:05]} 49. Kc2 {[%clk 0:00:02]}  Ke3 {[%clk 0:00:05]} 50. Kb3 {[%clk 0:00:03]}  Kf3 {[%clk 0:00:04]} 51. Ka4 {[%clk 0:00:03]}  Kxg3 {[%clk 0:00:04]} 52. Ka5 {[%clk 0:00:04]}  Kxh3 {[%clk 0:00:01]} 53. Kxa6 {[%clk 0:00:04]}  g4 {[%clk 0:00:01]} 54. b4 {[%clk 0:00:05]}  g3 {[%clk 0:00:02]} 55. b5 {[%clk 0:00:06]}  g2 {[%clk 0:00:03]} 56. b6 {[%clk 0:00:07]}  g1=Q {[%clk 0:00:03]} 57. b7 {[%clk 0:00:08]}  Qa1+ {[%clk 0:00:04]} 0-1


[Site "https://www.chess.com"]

[Event "Titled Tuesday Blitz April 4 Early 2023"]
[White "Kozak, Antoni"]
[Black "Narayanan, Srinath"]
[WhiteFideId "21832030"]
[BlackFideId "5018420"]
[WhiteElo "2470"]
[BlackElo "2438"]
[Result "1-0"]
[Round "08"]
[TimeControl "180+2"]
[Date "2023.04.04"]
[WhiteClock "0:01:18"]
[BlackClock "0:01:10"]

1. Nf3 {[%clk 0:03:00]}  d5 {[%clk 0:02:58]} 2. e3 {[%clk 0:03:01]}  Nf6 {[%clk 0:02:58]} 3. c4 {[%clk 0:03:01]}  e6 {[%clk 0:02:58]} 4. b3 {[%clk 0:03:01]}  b6 {[%clk 0:02:57]} 5. Bb2 {[%clk 0:03:01]}  Bb7 {[%clk 0:02:58]} 6. cxd5 {[%clk 0:03:01]}  exd5 {[%clk 0:02:58]} 7. g3 {[%clk 0:03:00]}  c5 {[%clk 0:02:57]} 8. Bg2 {[%clk 0:03:00]}  Nc6 {[%clk 0:02:54]} 9. O-O {[%clk 0:02:59]}  Be7 {[%clk 0:02:54]} 10. d4 {[%clk 0:02:59]}  O-O {[%clk 0:02:53]} 11. Nc3 {[%clk 0:02:59]}  c4 {[%clk 0:02:50]} 12. Ne5 {[%clk 0:02:58]}  cxb3 {[%clk 0:02:44]} 13. axb3 {[%clk 0:02:55]}  a5 {[%clk 0:02:44]} 14. Re1 {[%clk 0:02:47]}  Nb4 {[%clk 0:02:44]} 15. Bf1 {[%clk 0:02:44]}  Rc8 {[%clk 0:02:43]} 16. Qd2 {[%clk 0:02:43]}  Ne4 {[%clk 0:02:43]} 17. Nxe4 {[%clk 0:02:42]}  Rc2 {[%clk 0:02:41]} 18. Qd1 {[%clk 0:02:37]}  dxe4 {[%clk 0:02:12]} 19. Ba3 {[%clk 0:02:23]}  Rc7 {[%clk 0:02:11]} 20. Bc4 {[%clk 0:02:18]}  Bd6 {[%clk 0:02:05]} 21. Bxb4 {[%clk 0:02:04]}  Bxb4 {[%clk 0:01:58]} 22. Rf1 {[%clk 0:02:05]}  Bd6 {[%clk 0:01:55]} 23. Qh5 {[%clk 0:02:03]}  Qf6 {[%clk 0:01:49]} 24. Rad1 {[%clk 0:01:37]}  g6 {[%clk 0:01:14]} 25. Ng4 {[%clk 0:01:36]}  Qf3 {[%clk 0:01:14]} 26. Qg5 {[%clk 0:01:19]}  h5 {[%clk 0:01:10]} 27. Qxg6+ {[%clk 0:01:17]}  Kh8 {[%clk 0:01:11]} 28. Qxh5+ {[%clk 0:01:17]}  Kg7 {[%clk 0:01:11]} 29. Qg5+ {[%clk 0:01:17]}  Kh8 {[%clk 0:01:09]} 30. Qh6+ {[%clk 0:01:17]}  Kg8 {[%clk 0:01:10]} 31. Nf6+ {[%clk 0:01:18]} 1-0


[Site "https://www.chess.com"]